fUST/lending_fUST_20250219
["ID","MTS","AMOUNT","RATE_DAILY","PERIOD"]
[353591443,1739946632297,-158.76130884,0.00013598,2]
[353591444,1739946632306,-300.0,0.00013697,2]
[353591445,1739946632316,-326.27860177,0.00013698,2]
[353591446,1739946632325,-231.71282263,0.00013698,2]
[353591447,1739946632335,-500.49716961,0.00013698,2]
[353591448,1739946632481,-500.0,0.00013698,2]
[353591449,1739946632491,-500.0,0.00013698,2]
[353591450,1739946632501,-500.70161677,0.00013698,2]
[353591451,1739946632512,-504.46596772,0.00013698,2]
[353591452,1739946632522,-500.39871068,0.00013698,2]
[353591453,1739946632531,-501.47116103,0.00013698,2]
[353591454,1739946632541,-500.0,0.00013698,2]
[353591455,1739946632550,-501.42463322,0.00013698,2]
[353591456,1739946632561,-500.0,0.00013698,2]
[353591457,1739946632570,-502.81011117,0.00013698,2]
[353591458,1739946632579,-500.0,0.00013698,2]
[353591459,1739946632588,-501.83058535,0.00013698,2]
[353591460,1739946632598,-500.0,0.00013698,2]
[353591461,1739946632608,-502.11761969,0.00013698,2]
[353591462,1739946632617,-199.138979,0.00013698,2]
[353591463,1739946632626,-501.95003646,0.00013698,2]
[353591464,1739946632635,-504.74917244,0.00013698,2]
[353591465,1739946632645,-540.19871732,0.00013698,2]
[353591466,1739946632654,-501.92756061,0.00013698,2]
[353591467,1739946632663,-502.13319608,0.00013698,2]
[353591468,1739946632672,-501.74312773,0.00013698,2]
[353591469,1739946632681,-501.96217733,0.00013698,2]
[353591470,1739946632691,-504.02125148,0.00013698,2]
[353591471,1739946632700,-500.0,0.00013698,2]
[353591472,1739946632709,-503.47275506,0.00013698,2]
[353591473,1739946632718,-501.30649614,0.00013698,2]
[353591474,1739946632727,-500.0,0.00013698,2]
[353591475,1739946632737,-501.16571018,0.00013698,2]
[353591476,1739946632746,-502.31630267,0.00013698,2]
[353591477,1739946632755,-502.63467788,0.00013698,2]
[353591478,1739946632766,-503.0400365,0.00013698,2]
[353591479,1739946632775,-500.0,0.00013698,2]
[353591480,1739946632784,-500.0,0.00013698,2]
[353591481,1739946632794,-503.42446607,0.00013698,2]
[353591482,1739946632803,-502.22214263,0.00013698,2]
[353591483,1739946632813,-502.77656829,0.00013698,2]
[353591484,1739946632822,-504.05338291,0.00013698,2]
[353591485,1739946632836,-500.0,0.00013698,2]
[353591486,1739946632846,-319.63857631,0.00013698,2]
[353591487,1739946632855,-500.0,0.00013698,2]
[353591488,1739946632865,-500.0,0.00013698,2]
[353591489,1739946632874,-500.0,0.00013698,2]
[353591490,1739946632883,-507.39665245,0.00013698,2]
[353591491,1739946632893,-503.88099242,0.00013698,2]
[353591492,1739946632902,-500.0,0.00013698,2]
[353591493,1739946632911,-500.0,0.00013698,2]
[353591494,1739946632920,-500.0,0.00013698,2]
[353591495,1739946632930,-192.69626016,0.00013698,2]
[353591496,1739946632939,-500.0,0.00013698,2]
[353591497,1739946632948,-500.0,0.00013698,2]
[353591498,1739946632957,-606.07,0.00013698,2]
[353591499,1739946632966,-504.05133651,0.00013698,2]
[353591500,1739946632975,-6.60413567,0.00013698,2]
[353591501,1739946632988,-493.39586433,0.00013698,2]
[353591502,1739946632997,-500.0,0.00013698,2]
[353591503,1739946633007,-500.0,0.00013698,2]
[353591504,1739946633016,-500.0,0.00013698,2]
[353591505,1739946633026,-500.0,0.00013698,2]
[353591506,1739946633036,-500.0,0.00013698,2]
[353591507,1739946633046,-500.0,0.00013698,2]
[353591508,1739946633056,-500.0,0.00013698,2]
[353591509,1739946633066,-500.0,0.00013698,2]
[353591510,1739946633075,-392.76932957,0.00013698,2]
[353591511,1739946633087,-107.23067043,0.00013698,2]
[353591512,1739946633097,-500.53356857,0.00013698,2]
[353591513,1739946633106,-500.0,0.00013698,2]
[353591514,1739946633115,-500.0,0.00013698,2]
[353591515,1739946633125,-500.0,0.00013698,2]
[353591516,1739946633135,-205.035761,0.00013698,2]
[353591517,1739946633147,-294.964239,0.00013698,2]
[353591518,1739946633157,-451.371319,0.00013698,2]
[353591519,1739946633169,-48.628681,0.00013698,2]
[353591520,1739946633178,-500.5664994,0.00013698,2]
[353591521,1739946633188,-500.0,0.00013698,2]
[353591522,1739946633197,-500.0,0.00013698,2]
[353591523,1739946633208,-500.0,0.00013698,2]
[353591524,1739946633217,-500.0,0.00013698,2]
[353591525,1739946633227,-500.0,0.00013698,2]
[353591526,1739946633236,-500.78701828,0.00013698,2]
[353591527,1739946633246,-500.88915483,0.00013698,2]
[353591528,1739946633256,-500.0,0.00013698,2]
[353591529,1739946633267,-226.78817504,0.00013698,2]
[353591530,1739946633314,-273.21182496,0.00013698,2]
[353591531,1739946633324,-500.0,0.00013698,2]
[353591532,1739946633334,-228.08167049,0.00013698,2]
[353591551,1739946638217,-271.91832951,0.00013698,2]
[353591552,1739946638228,-526.98,0.00013698,2]
[353591553,1739946638237,-500.0,0.00013698,2]
[353591554,1739946638246,-500.0,0.00013698,2]
[353591555,1739946638256,-500.0,0.00013698,2]
[353591556,1739946638267,-500.0,0.00013698,2]
[353591557,1739946638276,-570.02860475,0.00013698,2]
[353591558,1739946638286,-502.369772,0.00013698,2]
[353591559,1739946638295,-500.0,0.00013698,2]
[353591560,1739946638305,-500.0,0.00013698,2]
[353591561,1739946638315,-502.97997984,0.00013698,2]
[353591562,1739946638324,-500.0,0.00013698,2]
[353591563,1739946638333,-500.0,0.00013698,2]
[353591565,1739946638343,-500.0,0.00013698,2]
[353591568,1739946638352,-500.59652008,0.00013698,2]
[353591570,1739946638362,-500.0,0.00013698,2]
[353591572,1739946638371,-538.01,0.00013698,2]
[353591574,1739946638380,-500.0,0.00013698,2]
[353591575,1739946638389,-500.0,0.00013698,2]
[353591576,1739946638399,-500.0,0.00013698,2]
[353591577,1739946638409,-501.08099652,0.00013698,2]
[353591578,1739946638418,-276.07648083,0.00013698,2]
[353591579,1739946638430,-223.92351917,0.00013698,2]
[353591580,1739946638442,-636.32095941,0.00013698,2]
[353591581,1739946638453,-500.0,0.00013698,2]
[353591582,1739946638462,-500.0,0.00013698,2]
[353591583,1739946638471,-500.0,0.00013698,2]
[353591584,1739946638480,-500.84521122,0.00013698,2]
[353591585,1739946638491,-611.8,0.00013698,2]
[353591586,1739946638500,-500.0,0.00013698,2]
[353591587,1739946638509,-96.19335514,0.00013698,2]
[353591588,1739946638523,-403.80664486,0.00013698,2]
[353591589,1739946638532,-503.5424266,0.00013698,2]
[353591590,1739946638542,-500.0,0.00013698,2]
[353591591,1739946638552,-500.0,0.00013698,2]
[353591592,1739946638561,-500.0,0.00013698,2]
[353591593,1739946638571,-500.0,0.00013698,2]
[353591594,1739946638580,-541.51,0.00013698,2]
[353591595,1739946638590,-500.0,0.00013698,2]
[353591596,1739946638599,-500.0,0.00013698,2]
[353591597,1739946638609,-500.0,0.00013698,2]
[353591598,1739946638619,-500.0,0.00013698,2]
[353591599,1739946638629,-500.0,0.00013698,2]
[353591600,1739946638638,-500.0,0.00013698,2]
[353591601,1739946638648,-500.0,0.00013698,2]
[353591602,1739946638657,-500.0,0.00013698,2]
[353591603,1739946638666,-500.0,0.00013698,2]
[353591604,1739946638676,-500.0,0.00013698,2]
[353591605,1739946638685,-500.0,0.00013698,2]
[353591606,1739946638695,-544.9,0.00013698,2]
[353591607,1739946638704,-567.22,0.00013698,2]
[353591608,1739946638713,-520.79191335,0.00013698,2]
[353591609,1739946638722,-500.0,0.00013698,2]
[353591610,1739946638731,-500.0,0.00013698,2]
[353591611,1739946638740,-500.0,0.00013698,2]
[353591612,1739946638750,-500.0,0.00013698,2]
[353591613,1739946638759,-500.0,0.00013698,2]
[353591614,1739946638770,-500.0,0.00013698,2]
[353591615,1739946638779,-500.0,0.00013698,2]
[353591616,1739946638788,-501.66594896,0.00013698,2]
[353591617,1739946638797,-502.99807019,0.00013698,2]
[353591618,1739946638807,-500.0,0.00013698,2]
[353591619,1739946638816,-500.0,0.00013698,2]
[353591620,1739946638826,-500.0,0.00013698,2]
[353591621,1739946638836,-500.0,0.00013698,2]
[353591622,1739946638846,-500.0,0.00013698,2]
[353591623,1739946638855,-161.804534,0.00013699,2]
[353591624,1739946638865,-252.240239,0.00013699,2]
[353591625,1739946638875,-497.02,0.0001378,2]
[353591626,1739946638885,-500.0,0.0001378,2]
[353591627,1739946638895,-500.0,0.0001378,2]
[353591628,1739946638904,-500.0,0.0001378,2]
[353591629,1739946638913,-500.0,0.0001378,2]
[353591630,1739946638922,-500.0,0.0001378,2]
[353591631,1739946638931,-633.8,0.0001378,2]
[353591632,1739946638941,-500.0,0.0001378,2]
[353591633,1739946638950,-500.0,0.0001378,2]
[353591634,1739946638959,-269.19442952,0.0001378,2]
[353591635,1739946638968,-500.0,0.0001378,2]
[353591636,1739946638977,-500.0,0.0001378,2]
[353591637,1739946638987,-500.0,0.0001378,2]
[353591638,1739946638997,-510.31021968,0.0001378,2]
[353591639,1739946639006,-500.0,0.0001378,2]
[353591640,1739946639015,-500.0,0.0001378,2]
[353591641,1739946639025,-500.0,0.0001378,2]
[353591642,1739946639034,-262.6,0.0001378,2]
[353591643,1739946639043,-500.0,0.0001378,2]
[353591644,1739946639053,-500.0,0.0001378,2]
[353591645,1739946639063,-336.58,0.0001378,2]
[353591646,1739946639071,-500.0,0.0001378,2]
[353591647,1739946639081,-500.0,0.0001378,2]
[353591648,1739946639090,-500.0,0.0001378,2]
[353591649,1739946639099,-500.0,0.0001378,2]
[353591650,1739946639108,-500.0,0.0001378,2]
[353591651,1739946639117,-513.81,0.0001378,2]
[353591652,1739946639126,-377.42,0.0001378,2]
[353591653,1739946639135,-500.0,0.0001378,2]
[353591654,1739946639144,-500.0,0.0001378,2]
[353591655,1739946639153,-197.0,0.0001378,2]
[353591656,1739946639162,-548.93,0.0001378,2]
[353591657,1739946639171,-500.0,0.0001378,2]
[353591658,1739946639181,-500.0,0.0001378,2]
[353591659,1739946639190,-500.0,0.0001378,2]
[353591660,1739946639200,-500.0,0.0001378,2]
[353591661,1739946639209,-500.0,0.0001378,2]
[353591662,1739946639218,-500.0,0.0001378,2]
[353591663,1739946639227,-500.0,0.0001378,2]
[353591664,1739946639236,-242.96,0.0001378,2]
[353591665,1739946639245,-500.0,0.0001378,2]
[353591666,1739946639254,-500.0,0.0001378,2]
[353591667,1739946639263,-500.0,0.0001378,2]
[353591668,1739946639273,-531.9,0.0001378,2]
[353591669,1739946639283,-258.09,0.0001378,2]
[353591670,1739946639292,-500.0,0.00013814,2]
[353591671,1739946639314,-500.0,0.00013863,2]
[353591672,1739946639323,-470.70394094,0.00013863,2]
[353591673,1739946639332,-500.0,0.00013863,2]
[353591674,1739946639341,-500.0,0.00013863,2]
[353591675,1739946639351,-500.0,0.00013863,2]
[353591676,1739946639360,-500.0,0.00013863,2]
[353591677,1739946639369,-500.0,0.00013863,2]
[353591678,1739946639378,-362.99,0.00013863,2]
[353591679,1739946639387,-500.0,0.00013863,2]
[353591680,1739946639396,-500.0,0.00013863,2]
[353591681,1739946639405,-205.76044564,0.00013944,2]
[353591682,1739946639415,-500.0,0.00013945,2]
[353591683,1739946639424,-500.0,0.00013945,2]
[353591684,1739946639434,-500.0,0.00013945,2]
[353591685,1739946639445,-139.98790866,0.00014027,2]
[353591686,1739946639461,-360.01209134,0.00014027,2]
[353591687,1739946639470,-500.0,0.00014027,2]
[353591688,1739946639480,-500.0,0.00014027,2]
[353591689,1739946639489,-500.0,0.00014109,2]
[353591690,1739946639498,-500.0,0.00014109,2]
[353591691,1739946639508,-500.0,0.00014109,2]
[353591692,1739946639519,-166.601,0.00014186,2]
[353591693,1739946639528,-500.0,0.00014191,2]
[353591694,1739946639537,-11.90874319,0.00014191,2]
[353591740,1739946640542,-334.98124228,0.00014191,2]
[353591743,1739946640562,-181.64919425,0.00014191,2]
[353591745,1739946640571,-384.52232575,0.00014273,2]
[353591747,1739946640583,-115.47767425,0.00014273,2]
[353591749,1739946640592,-282.59832575,0.00014356,2]
[353591751,1739946640603,-217.40167425,0.00014356,2]
[353591763,1739946640709,-1000.0,0.00014362,2]
[353591765,1739946640719,-500.0,0.00014438,2]
[353591767,1739946640728,-158.7613088,0.00014458,2]
[353591769,1739946640738,-500.0,0.0001452,2]
[353591771,1739946640748,-555.19727379,0.00014602,2]
[353591773,1739946640757,-560.90704813,0.000148,2]
[353591775,1739946640766,-36822.1117717,0.000149,2]
[353591777,1739946640775,-236.0,0.0001501,2]
[353591779,1739946640785,-7438.69753278,0.00015103,2]
[353591781,1739946640794,-158.7613088,0.00015319,2]
[353591783,1739946640804,-503.18425071,0.00015364,2]
[353591785,1739946640814,-151.0,0.00015743,2]
[353591787,1739946640823,-158.7613088,0.00016179,2]
[353591789,1739946640832,-158.7613088,0.0001704,2]
[353591791,1739946640841,-216.0216939,0.00017178,2]
[353591793,1739946640851,-500.0,0.00017179,2]
[353591795,1739946640860,-11433.48094983,0.000175,2]
[353591797,1739946640869,-36822.1117717,0.00017532,2]
[353591799,1739946640878,-560.90704813,0.00017532,2]
[353591801,1739946640887,-179.2004304,0.0001764,2]
[353591803,1739946640898,-250.0,0.00017651,10]
[353591805,1739946640907,-250.0,0.00017651,10]
[353591807,1739946640917,-250.0,0.00017651,10]
[353591809,1739946640926,-250.0,0.00017651,10]
[353591811,1739946640936,-287.576382,0.00017651,10]
[353591813,1739946640945,-3321.6304953,0.00017651,2]
[353591815,1739946640954,-2290.0,0.00017721,2]
[353591817,1739946640963,-396.0,0.00017721,2]
[353591819,1739946640972,-1971.0,0.00017721,2]
[353591821,1739946640981,-1000.0,0.00017727,2]
[353591823,1739946640990,-13275.53870192,0.00017753,2]
[353591825,1739946641000,-3000.0,0.000179,2]
[353591827,1739946641010,-2905.27528932,0.000179,2]
[353591829,1739946641019,-158.7613088,0.000179,2]
[353591831,1739946641028,-500.3801526,0.00017973,2]
[353591833,1739946641038,-500.0,0.00017973,2]
[353591835,1739946641047,-500.00643651,0.00017973,2]
[353591837,1739946641056,-500.18961432,0.00017973,2]
[353591839,1739946641065,-500.83239552,0.00017973,2]
[353591841,1739946641074,-500.33539108,0.00017973,2]
[353591843,1739946641084,-500.0,0.00017973,2]
[353591845,1739946641093,-501.04782091,0.00017973,2]
[353591847,1739946641102,-330.69955785,0.00017973,2]
[353591849,1739946641112,-500.86516618,0.0001798,2]
[353591851,1739946641122,-73644.2235435,0.0001798,2]
[353591853,1739946641131,-1121.81409626,0.0001798,2]
[353591855,1739946641140,-48555.80949001,0.0001799,2]
[353591857,1739946641153,-25088.41405349,0.0001799,2]
[353591859,1739946641162,-1121.81409626,0.0001799,2]
[353591862,1739946641172,-60353.65958007,0.0001799,2]
[353591893,1739946643575,-604.0,0.0001799,2]
[353591894,1739946643587,-2640.79952754,0.0001799,2]
[353591907,1739946646323,-216.0216939,0.00017178,2]
[353591908,1739946646332,-29784.1904761,0.0001799,2]
[353591909,1739946646343,-15320.1,0.0001799,2]
[353591910,1739946646418,-1763.58573129,0.0001799,2]
[353591911,1739946646427,-7852.69867382,0.0001799,2]
[353591912,1739946646437,-151.0,0.00017999,2]
[353591913,1739946646449,-160.0,0.00017999,2]
[353591914,1739946646458,-160.0,0.00017999,2]
[353591915,1739946646467,-160.0,0.00017999,2]
[353591916,1739946646476,-41579.44998629,0.00018,5]
[353591917,1739946673084,166.265586,9.041e-05,2]
[353591919,1739947627090,-300.0,0.00011999,2]
[353591920,1739947627114,-13623.72931279,0.00012,3]
[353591921,1739947634111,-396.67013271,0.00012,3]
[353591922,1739947635083,-955.01133043,0.00012,3]
[353591923,1739947636072,-491.81447679,0.00012,3]
[353591924,1739947640104,-6554.69393791,0.00012,3]
[353591925,1739947647124,-675.72951365,0.00012,3]
[353591927,1739947747022,166.265586,9.041e-05,2]
[353591928,1739947749173,-300.0,0.00011999,2]
[353591929,1739947749196,-140689.40770449,0.00012,3]
[353591931,1739947752138,-1011.53163733,0.00012,3]
[353591932,1739947752159,-853.12979855,0.00012237,2]
[353591933,1739947762133,-47.01020325,0.00012237,2]
[353591934,1739947762155,-816.82400884,0.00012361,2]
[353591935,1739947773076,-83.31599296,0.00012361,2]
[353591936,1739947773099,-197.56344082,0.00012639,2]
[353591937,1739947773124,-19950.3418862,0.00012739,2]
[353591938,1739947773147,-69.39227635,0.000129,2]
[353591939,1739947799406,-236.0,0.0001304,2]
[353591940,1739947799441,-236.0,0.00013172,2]
[353591941,1739947799476,-528.0,0.00013597,2]
[353591942,1739947803403,-628.60530008,0.00013597,2]
[353591943,1739947803437,-371.39469992,0.00013698,2]
[353591986,1739947832685,-2309.9,0.00013561,2]
[353591987,1739947832704,-279.83021472,0.00013561,2]
[353591988,1739947832727,-782.125,0.00013561,2]
[353592001,1739947838598,-6996.0724435,0.00013561,2]
[353592003,1739947839027,-599.7087558,0.00013561,2]
[353592004,1739947839037,-500.0,0.00013698,2]
[353592005,1739947839047,-500.87909584,0.00013698,2]
[353592006,1739947839056,-500.75597198,0.00013698,2]
[353592007,1739947839067,-500.50632657,0.00013698,2]
[353592008,1739947839076,-500.0,0.00013698,2]
[353592009,1739947839086,-500.0,0.00013698,2]
[353592010,1739947839095,-333.74891942,0.00013698,2]
[353592011,1739947839104,-500.0,0.00013698,2]
[353592012,1739947839114,-500.0,0.00013698,2]
[353592013,1739947839124,-500.0,0.00013698,2]
[353592014,1739947839133,-504.46962706,0.00013698,2]
[353592015,1739947839142,-500.0,0.00013698,2]
[353592016,1739947839152,-503.48,0.00013698,2]
[353592017,1739947839162,-500.0,0.00013698,2]
[353592018,1739947839174,-500.0,0.00013698,2]
[353592019,1739947839183,-193.65982697,0.00013698,2]
[353592020,1739947839193,-500.0,0.00013698,2]
[353592021,1739947839203,-500.0,0.00013698,2]
[353592022,1739947839213,-500.0,0.00013698,2]
[353592023,1739947839222,-500.0,0.00013698,2]
[353592024,1739947839232,-500.23467719,0.00013698,2]
[353592025,1739947839242,-500.93604159,0.00013698,2]
[353592026,1739947839251,-336.88938994,0.00013698,2]
[353592027,1739947839261,-502.87152988,0.00013698,2]
[353592028,1739947839271,-500.0,0.00013698,2]
[353592029,1739947839280,-500.0,0.00013698,2]
[353592030,1739947839290,-500.0,0.00013698,2]
[353592031,1739947839299,-500.0,0.00013698,2]
[353592032,1739947839309,-500.0,0.00013698,2]
[353592033,1739947839318,-500.0,0.00013698,2]
[353592034,1739947839328,-500.0,0.00013698,2]
[353592035,1739947839338,-500.0,0.00013698,2]
[353592036,1739947839348,-500.0,0.00013698,2]
[353592037,1739947839357,-500.0,0.00013698,2]
[353592038,1739947839367,-500.0,0.00013698,2]
[353592039,1739947839377,-500.0,0.00013698,2]
[353592040,1739947839387,-500.0,0.00013698,2]
[353592041,1739947839396,-614.91,0.00013698,2]
[353592042,1739947839406,-500.0,0.00013698,2]
[353592043,1739947839415,-500.0,0.00013698,2]
[353592044,1739947839425,-500.0,0.00013698,2]
[353592045,1739947839435,-500.0,0.00013698,2]
[353592046,1739947839444,-500.0,0.00013698,2]
[353592047,1739947839455,-500.0,0.00013698,2]
[353592048,1739947839465,-500.0,0.00013698,2]
[353592049,1739947839474,-500.0,0.00013698,2]
[353592050,1739947839484,-500.0,0.00013698,2]
[353592051,1739947839494,-500.0,0.00013698,2]
[353592052,1739947839504,-500.0,0.00013698,2]
[353592053,1739947839513,-500.0,0.00013698,2]
[353592054,1739947839523,-500.0,0.00013698,2]
[353592055,1739947839534,-500.0,0.00013698,2]
[353592056,1739947839544,-500.0,0.00013698,2]
[353592057,1739947839554,-500.0,0.00013698,2]
[353592058,1739947839564,-500.0,0.00013698,2]
[353592059,1739947839574,-500.0,0.00013698,2]
[353592060,1739947839584,-500.0,0.00013698,2]
[353592061,1739947839594,-522.2,0.00013698,2]
[353592062,1739947839603,-500.0,0.00013698,2]
[353592063,1739947839613,-500.0,0.00013698,2]
[353592064,1739947839622,-296.35938849,0.00013698,2]
[353592065,1739947839632,-500.0,0.00013698,2]
[353592066,1739947839642,-500.0,0.00013698,2]
[353592067,1739947839651,-500.0,0.00013698,2]
[353592068,1739947839661,-500.0,0.00013698,2]
[353592069,1739947839671,-500.0,0.00013698,2]
[353592070,1739947839680,-500.0,0.00013698,2]
[353592071,1739947839689,-161.804534,0.00013699,2]
[353592072,1739947839700,-252.2402398,0.00013699,2]
[353592073,1739947839710,-500.0,0.00013779,2]
[353592074,1739947839719,-533.88,0.00013779,2]
[353592075,1739947839729,-500.0,0.0001378,2]
[353592076,1739947839739,-500.0,0.0001378,2]
[353592077,1739947839749,-230.82,0.0001378,2]
[353592078,1739947839759,-500.0,0.0001378,2]
[353592079,1739947839769,-500.0,0.0001378,2]
[353592080,1739947839779,-500.0,0.0001378,2]
[353592081,1739947839789,-402.96688032,0.0001378,2]
[353592082,1739947839799,-500.0,0.0001378,2]
[353592083,1739947839808,-500.0,0.0001378,2]
[353592084,1739947839820,-500.0,0.0001378,2]
[353592085,1739947839834,-500.0,0.0001378,2]
[353592086,1739947839843,-167.96,0.0001378,2]
[353592087,1739947839853,-500.0,0.0001378,2]
[353592088,1739947839863,-505.23,0.0001378,2]
[353592089,1739947839872,-618.09,0.0001378,2]
[353592090,1739947839881,-500.0,0.0001378,2]
[353592091,1739947839891,-500.0,0.0001378,2]
[353592092,1739947839900,-500.0,0.0001378,2]
[353592093,1739947839911,-480.27302618,0.0001378,2]
[353592094,1739947839920,-500.0,0.0001378,2]
[353592095,1739947839930,-500.0,0.0001378,2]
[353592096,1739947839940,-500.0,0.0001378,2]
[353592097,1739947839952,-500.0,0.0001378,2]
[353592098,1739947839961,-500.0,0.0001378,2]
[353592099,1739947839971,-500.0,0.0001378,2]
[353592100,1739947839981,-202.53,0.0001378,2]
[353592101,1739947839991,-226.5,0.0001378,2]
[353592102,1739947840000,-500.0,0.0001378,2]
[353592103,1739947840010,-533.88,0.00013861,2]
[353592104,1739947840021,-500.0,0.00013863,2]
[353592105,1739947840030,-500.0,0.00013863,2]
[353592106,1739947840040,-301.72,0.00013863,2]
[353592107,1739947840050,-543.42,0.00013863,2]
[353592108,1739947840059,-471.56,0.00013863,2]
[353592109,1739947840069,-500.0,0.00013863,2]
[353592110,1739947840078,-500.0,0.00013863,2]
[353592111,1739947840088,-500.0,0.00013863,2]
[353592112,1739947840098,-500.0,0.00013863,2]
[353592113,1739947840109,-500.0,0.00013863,2]
[353592114,1739947840119,-500.0,0.00013863,2]
[353592115,1739947840130,-500.0,0.00013863,2]
[353592116,1739947840140,-500.0,0.00013863,2]
[353592117,1739947840150,-500.0,0.00013863,2]
[353592118,1739947840161,-500.0,0.00013863,2]
[353592119,1739947840171,-500.0,0.00013863,2]
[353592120,1739947840181,-646.38,0.00013863,2]
[353592121,1739947840190,-468.07,0.00013863,2]
[353592122,1739947840200,-191.17,0.00013863,2]
[353592123,1739947840209,-500.0,0.00013863,2]
[353592124,1739947840219,-533.88,0.00013944,2]
[353592125,1739947840229,-500.0,0.00013945,2]
[353592127,1739947840239,-500.0,0.00013945,2]
[353592128,1739947840249,-500.0,0.00013945,2]
[353592129,1739947840258,-272.59894804,0.00013945,2]
[353592130,1739947840268,-500.0,0.00013945,2]
[353592131,1739947840277,-500.0,0.00013945,2]
[353592132,1739947840287,-500.0,0.00013945,2]
[353592133,1739947840297,-500.0,0.00013945,2]
[353592134,1739947840307,-500.0,0.00013945,2]
[353592135,1739947840316,-500.0,0.00013945,2]
[353592136,1739947840326,-500.0,0.00013945,2]
[353592137,1739947840335,-500.0,0.00013945,2]
[353592138,1739947840345,-500.0,0.00013945,2]
[353592139,1739947840355,-500.0,0.00013945,2]
[353592140,1739947840365,-533.88,0.00014026,2]
[353592141,1739947840375,-369.25,0.00014027,2]
[353592142,1739947840385,-500.0,0.00014027,2]
[353592143,1739947840394,-500.0,0.00014027,2]
[353592144,1739947840404,-500.0,0.00014027,2]
[353592145,1739947840414,-500.0,0.00014027,2]
[353592146,1739947840424,-500.0,0.00014027,2]
[353592147,1739947840433,-500.0,0.00014027,2]
[353592148,1739947840443,-500.0,0.00014027,2]
[353592149,1739947840452,-500.0,0.00014027,2]
[353592150,1739947840462,-500.0,0.00014027,2]
[353592151,1739947840472,-500.0,0.00014027,2]
[353592152,1739947840481,-500.0,0.00014027,2]
[353592153,1739947840491,-335.95,0.00014027,2]
[353592154,1739947840510,-533.88,0.00014108,2]
[353592155,1739947840521,-500.0,0.00014109,2]
[353592156,1739947840531,-500.0,0.00014109,2]
[353592157,1739947840542,-500.0,0.00014109,2]
[353592158,1739947840552,-247.37,0.00014109,2]
[353592160,1739947840562,-500.0,0.00014109,2]
[353592161,1739947840571,-500.0,0.00014109,2]
[353592162,1739947840581,-500.0,0.00014109,2]
[353592163,1739947840591,-500.0,0.00014109,2]
[353592164,1739947840601,-500.0,0.00014109,2]
[353592165,1739947840611,-500.0,0.00014109,2]
[353592166,1739947840620,-500.0,0.00014109,2]
[353592167,1739947840630,-166.601,0.00014186,2]
[353592168,1739947840639,-533.88,0.0001419,2]
[353592169,1739947840649,-500.0,0.00014191,2]
[353592170,1739947840659,-500.0,0.00014191,2]
[353592171,1739947840823,-500.0,0.00014191,2]
[353592172,1739947840834,-500.0,0.00014191,2]
[353592173,1739947840844,-500.0,0.00014191,2]
[353592174,1739947840853,-524.92,0.00014191,2]
[353592175,1739947840863,-500.0,0.00014191,2]
[353592176,1739947840873,-500.0,0.00014191,2]
[353592177,1739947840882,-500.0,0.00014191,2]
[353592178,1739947840891,-500.0,0.00014191,2]
[353592179,1739947840901,-533.88,0.00014272,2]
[353592180,1739947840910,-500.0,0.00014273,2]